bitfinex/quotes_SOLUSD_20260115
["timestamp","ask_amount","ask_price","bid_price","bid_amount"]
[1768490052055,9.04670686,143.52,143.48,10.81902186]
[1768490052355,9.04624784,143.53,143.47,6.97009827]
[1768490052531,6.96724346,143.53,143.48,10.81902186]
[1768490052734,9.04586957,143.54,143.49,10.81902186]
[1768490052936,9.04586957,143.54,143.47,19.69009827]
[1768490053149,9.04586957,143.54,143.49,10.81902186]
[1768490053450,9.04586957,143.54,143.46,6.97057515]
[1768490053451,2.07900438,143.52,143.46,6.97057515]
[1768490053650,9.04710706,143.52,143.47,17.78911094]
[1768490054042,9.04710706,143.52,143.48,10.81902186]
[1768490054541,9.04710706,143.52,143.47,17.78911094]
[1768490054749,10.81902186,143.51,143.38,6.47511728]
[1768490054959,12.89802624,143.48,143.42,10.81902186]
[1768490055253,2.07900438,143.48,143.43,10.81902186]
[1768490055733,2.07900438,143.49,143.43,10.81902186]
[1768490055930,2.07900438,143.49,143.43,17.79085047]
[1768490056548,2.07900438,143.49,143.44,6.97136753]
[1768490056748,9.04764549,143.5,143.45,17.79002162]
[1768490057055,2.07900438,143.49,143.45,10.81902186]
[1768490057237,2.07900438,143.49,143.45,17.78996126]
[1768490057438,2.07900438,143.49,143.45,6.9709394]
[1768490057950,6.96864111,143.5,143.45,6.9709394]
[1768490058254,2.07900438,143.48,143.43,12.72]
[1768490058457,2.07900438,143.48,143.43,25.45462048]
[1768490058767,9.04764549,143.5,143.45,10.81902186]
[1768490059057,2.07900438,143.49,143.44,19.70609062]
[1768490059231,2.07900438,143.49,143.44,1.91559862]
[1768490059735,9.04764549,143.5,143.45,12.68721085]
[1768490059942,6.96836474,143.51,143.47,1.86818899]
[1768490060142,9.04683329,143.52,143.47,12.68721085]
[1768490060342,9.04683329,143.52,143.48,10.81902186]
[1768490060654,2.07900438,143.52,143.48,10.81902186]
[1768490060963,6.96733683,143.53,143.48,19.60880967]
[1768490061866,6.96733683,143.53,143.41,69.7413388]
[1768490061867,2.06065988,143.5,143.42,1.79724846]
[1768490062040,2.06065988,143.49,143.44,6.9713938]
[1768490062239,2.06065988,143.49,143.43,30.5109518]
[1768490062462,2.06065988,143.49,143.44,10.81902186]
[1768490062634,2.06065988,143.48,143.43,6.97192994]
[1768490062839,2.06065988,143.48,143.42,1.79724846]
[1768490063058,6.97009827,143.47,143.42,32.30863096]
[1768490063250,9.03047135,143.48,143.43,10.81902186]
[1768490063438,9.03047135,143.48,143.42,38.92092969]
[1768490063632,2.06065988,143.47,143.42,1.79724846]
[1768490063945,2.06065988,143.47,143.42,19.58876539]
[1768490064258,2.06065988,143.47,143.42,17.79151693]
[1768490064441,8.85263895,143.48,143.43,10.81902186]
[1768490064641,8.85263895,143.48,143.42,8.7012195]
[1768490064945,8.85263895,143.48,143.42,19.52024136]
[1768490065336,8.8530872,143.47,143.42,32.24024136]
[1768490068840,8.854022,143.45,143.4,6.97330208]
[1768490069745,8.854022,143.45,143.4,17.79232394]
[1768490070062,1.88282748,143.45,143.4,21.39190148]
[1768490070357,1.88282748,143.44,143.39,12.51762126]
[1768490070560,1.88282748,143.44,143.4,17.79243967]
[1768490070755,8.85342492,143.46,143.4,32.19021503]
[1768490071157,8.85342492,143.46,143.37,2.40362683]
[1768490071158,12.70184934,143.43,143.37,2.40362683]
[1768490071464,10.81902186,143.42,143.37,2.40362683]
[1768490071644,6.97252823,143.42,143.37,2.40362683]
[1768490072356,8.8550458,143.43,143.38,1.95410693]
[1768490072554,6.97221832,143.43,143.38,1.95410693]
[1768490073244,6.9717499,143.44,143.39,1.95410693]
[1768490073648,6.9717499,143.44,143.39,8.92797942]
[1768490073845,12.70184934,143.45,143.39,8.92797942]
[1768490073846,6.97126113,143.45,143.41,1.95410693]
[1768490074061,6.97062087,143.46,143.41,12.77312879]
[1768490074440,6.97062087,143.46,143.41,1.95410693]
[1768490074638,8.85300866,143.47,143.41,1.95410693]
[1768490074861,6.97018118,143.47,143.42,1.95410693]
[1768490075651,18.20625013,143.5,143.38,6.9743895]
[1768490075652,1.88282748,143.44,143.38,6.9743895]
[1768490075852,10.81902186,143.45,143.38,17.79341136]
[1768490076246,12.70184934,143.45,143.38,17.79341136]
[1768490076757,37.10079431,143.45,143.38,17.79341136]
[1768490076952,37.10079431,143.45,143.37,0.4495199]
[1768490076953,1.88282748,143.43,143.37,0.4495199]
[1768490077167,1.88282748,143.43,143.37,15.12362683]
[1768490077459,1.88282748,143.43,143.37,22.09858342]
[1768490077770,6.97252823,143.42,143.37,22.09858342]
[1768490078169,6.97252823,143.42,143.38,1.95410693]
[1768490078865,8.85507168,143.43,143.38,1.95410693]
[1768490079368,6.97127997,143.45,143.41,1.95410693]
[1768490079578,1.88282748,143.41,143.37,0.4495199]
[1768490079884,6.97252823,143.42,143.37,7.42418348]
[1768490080186,6.97252823,143.42,143.37,9.37842386]
[1768490080187,8.85535571,143.42,143.37,9.37842386]
[1768490080349,6.97252823,143.42,143.38,1.95410693]
[1768490080953,6.97157302,143.44,143.39,1.95410693]
[1768490081677,8.8544005,143.44,143.39,1.95410693]
[1768490081878,8.8544005,143.44,143.39,8.92791279]
[1768490082584,1.88282748,143.43,143.38,8.92829103]
[1768490083154,8.8544005,143.44,143.39,10.81902186]
[1768490083367,8.8544005,143.44,143.39,8.9280659]
[1768490083579,8.8544005,143.44,143.39,1.95410693]
[1768490083973,6.97157302,143.44,143.39,19.74708657]
[1768490084159,0.14216157,143.41,143.37,0.4495199]
[1768490085164,1.88282748,143.42,143.37,13.22264869]
[1768490085779,6.97301443,143.41,143.37,13.22264869]
[1768490085980,19.42578874,143.44,143.39,12.77312879]
[1768490086160,19.28362717,143.44,143.39,12.77312879]
[1768490086359,8.82671059,143.44,143.39,12.77312879]
[1768490086573,6.97127348,143.45,143.41,1.95410693]
[1768490086965,6.97127348,143.45,143.37,37.58182554]
[1768490086966,1.83131384,143.5,143.44,1.95410693]
[1768490087166,0.14216157,143.48,143.44,1.95410693]
[1768490087375,1.83131384,143.49,143.44,1.95410693]
[1768490087769,8.8004406,143.49,143.44,12.77312879]
[1768490087967,6.96912676,143.49,143.45,10.81902186]
[1768490088257,6.96912676,143.49,143.42,19.74532007]
[1768490088258,1.80815968,143.48,143.42,19.74532007]
[1768490088589,1.80815968,143.48,143.43,19.7451406]
[1768490088897,1.80815968,143.48,143.44,10.81902186]
[1768490089283,1.80815968,143.48,143.43,1.95410693]
[1768490089284,0.14216157,143.47,143.43,1.95410693]
[1768490089590,0.14216157,143.47,143.43,12.77312879]
[1768490089760,1.90480771,143.47,143.4,1.95410693]
[1768490089958,12.72,143.49,143.43,12.77312879]
[1768490089959,17.42503416,143.48,143.43,12.77312879]
[1768490090573,0.14216157,143.48,143.44,10.81902186]
[1768490091176,0.14216157,143.48,143.43,1.95410693]
[1768490091394,0.14216157,143.48,143.44,10.81902186]
[1768490091580,6.96961248,143.48,143.44,12.45816463]
[1768490091778,19.6892571,143.49,143.45,12.45816463]
[1768490091975,6.9692571,143.49,143.46,12.45816463]
[1768490092374,23.53902186,143.48,143.4,1.63914277]
[1768490092575,0.14216157,143.47,143.41,19.43089121]
[1768490092778,0.14216157,143.47,143.42,12.45816463]
[1768490093173,0.14216157,143.47,143.42,1.63914277]
[1768490093378,0.14216157,143.47,143.42,12.45816463]
[1768490093581,6.97058413,143.46,143.42,1.63914277]
[1768490093898,6.97058413,143.46,143.42,12.45816463]
[1768490094076,6.97058413,143.46,143.42,1.63914277]
[1768490094569,24.39704446,143.46,143.4,19.43163127]
[1768490094774,24.39704446,143.46,143.41,12.45816463]
[1768490094975,6.97058413,143.46,143.41,19.43095173]
[1768490095159,10.81902186,143.51,143.45,12.45816463]
[1768490095688,6.96864111,143.5,143.45,12.45816463]
[1768490095983,6.96864111,143.5,143.46,10.81902186]
[1768490096578,6.96864111,143.5,143.46,12.45816463]
[1768490096878,0.14216157,143.46,143.41,1.63914277]
[1768490097681,6.97107005,143.45,143.39,1.63914277]
[1768490097878,6.97107005,143.45,143.41,1.63914277]
[1768490098282,6.97107005,143.45,143.42,12.45816463]
[1768490098794,6.97107005,143.45,143.42,1.63914277]
[1768490100291,1.69612785,143.52,143.45,1.63914277]
[1768490100487,1.69612785,143.52,143.46,10.81902186]
[1768490100794,1.69612785,143.53,143.48,12.45816463]
[1768490101182,1.69612785,143.52,143.47,10.81902186]
[1768490101384,1.69612785,143.52,143.46,14.35914277]
[1768490101579,1.69612785,143.51,143.46,25.17816463]
[1768490101779,1.69612785,143.51,143.46,12.45816463]
[1768490101991,1.69612785,143.51,143.46,10.81902186]
[1768490102294,8.66458568,143.51,143.46,17.78945046]
[1768490102496,1.69612785,143.46,143.35,0.2]
[1768490102794,12.51514971,143.44,143.38,10.81902186]
[1768490102973,1.69612785,143.43,143.37,7.42420804]
[1768490103294,1.69612785,143.45,143.39,6.66432864]
[1768490103879,1.69612785,143.45,143.4,6.66432864]
[1768490104499,8.6676839,143.44,143.38,21.333537]
[1768490104797,8.6676839,143.44,143.37,17.88598831]
[1768490104798,1.69612785,143.43,143.37,0.4495199]
[1768490104987,1.69612785,143.43,143.37,15.7279457]
[1768490105300,6.97155605,143.44,143.41,6.66432864]
[1768490105495,6.97155605,143.44,143.38,8.61358949]
[1768490105694,6.97155605,143.44,143.39,8.30347141]
[1768490106602,6.97155605,143.44,143.39,15.27738745]
[1768490108003,6.80649021,143.4,143.35,0.2]
[1768490108299,0.14216157,143.4,143.35,0.2]
[1768490108480,6.97350069,143.4,143.35,1.83914277]
[1768490108680,6.97350069,143.4,143.36,8.30347141]
[1768490109301,8.66931844,143.41,143.37,1.63914277]
[1768490109480,1.69612785,143.41,143.38,8.30347141]
[1768490110093,6.97201181,143.44,143.4,1.63914277]
[1768490110885,13.63634045,143.44,143.39,6.97355611]
[1768490111204,6.97201181,143.44,143.39,1.63914277]
[1768490111595,1.69612785,143.39,143.35,0.2]
[1768490111802,8.36045649,143.39,143.35,0.2]
[1768490112189,1.69612785,143.39,143.35,0.2]
[1768490112704,6.97447342,143.38,143.35,0.2]
[1768490113005,6.97447342,143.38,143.35,1.83914277]
[1768490113207,6.97447342,143.38,143.35,0.2]
[1768490113602,6.97447342,143.38,143.35,1.83914277]
[1768490113935,6.97419454,143.39,143.35,1.83914277]
[1768490114205,6.97301443,143.41,143.37,1.63914277]
[1768490114817,32.76491527,143.42,143.37,1.63914277]
[1768490115315,26.10058663,143.42,143.37,1.63914277]
[1768490115489,32.76491527,143.42,143.37,1.63914277]
[1768490115686,31.06878742,143.42,143.36,1.63914277]
[1768490115885,1.69612785,143.39,143.35,0.2]
[1768490116302,1.69612785,143.4,143.35,6.86432864]
[1768490116493,1.69612785,143.4,143.35,0.2]
[1768490116884,8.36045649,143.37,143.3,6.97805867]
[1768490117082,1.69612785,143.34,143.29,1.63914277]
[1768490117299,8.36045649,143.34,143.29,1.63914277]
[1768490117812,1.69612785,143.31,143.27,0.1]
[1768490118189,1.83828942,143.34,143.27,0.1]
[1768490118488,0.14216157,143.36,143.29,13.64313156]
[1768490118489,1.69612785,143.36,143.29,13.64313156]
[1768490118687,1.69612785,143.34,143.28,13.64363145]
[1768490118890,6.97690643,143.33,143.28,13.64363145]
[1768490119691,8.67266717,143.34,143.28,26.36363145]
[1768490119891,8.67266717,143.34,143.29,6.66432864]
[1768490120717,1.69612785,143.34,143.29,6.66432864]
[1768490120890,6.97611254,143.35,143.31,6.97788012]
[1768490121617,6.97611254,143.35,143.27,0.1]
[1768490121618,1.34879166,143.32,143.27,1.37594465]
[1768490121794,1.34879166,143.27,143.22,17.38771179]
[1768490121991,1.34879166,143.27,143.22,24.36996591]
[1768490122309,1.34879166,143.27,143.22,31.03429455]
[1768490122616,1.34879166,143.3,143.24,7.94027329]
[1768490122796,1.34879166,143.3,143.25,12.72]
[1768490123313,1.34879166,143.32,143.26,7.94027329]
[1768490123609,8.0131203,143.32,143.26,7.94027329]
[1768490124109,1.34879166,143.32,143.26,7.94027329]
[1768490124317,1.32135471,143.35,143.29,7.96047394]
[1768490124494,1.32135471,143.35,143.29,20.68047394]
[1768490124819,7.98568335,143.35,143.29,14.0161453]
[1768490125006,7.98568335,143.35,143.29,20.68047394]
[1768490125219,8.29737624,143.35,143.3,1.2961453]
[1768490125524,17.43856054,143.37,143.24,1.2961453]
[1768490125525,1.32135471,143.37,143.24,1.2961453]
[1768490125698,6.66432864,143.34,143.27,6.66432864]
[1768490126027,0.77045139,143.35,143.28,19.38432864]
[1768490126322,6.66432864,143.34,143.28,12.72]
[1768490126524,6.66432864,143.34,143.28,19.38432864]
[1768490126909,6.66432864,143.34,143.28,12.72]
[1768490127424,6.97690643,143.33,143.28,26.36353096]
[1768490128219,6.9764197,143.34,143.28,19.69920232]
[1768490128505,6.9764197,143.34,143.28,26.36353096]
[1768490129506,6.9764197,143.34,143.24,1.2961453]
[1768490129507,29.90371908,143.34,143.24,1.2961453]
[1768490129718,6.66432864,143.32,143.26,1.2961453]
[1768490130341,0.14216157,143.33,143.26,1.2961453]
[1768490130831,6.66432864,143.31,143.26,1.2961453]
[1768490131216,31.08179759,143.34,143.28,1.2961453]
[1768490131531,6.66432864,143.34,143.29,1.2961453]
[1768490131830,24.41419975,143.36,143.29,1.2961453]
[1768490132041,6.66432864,143.34,143.29,1.2961453]
[1768490132409,6.9764197,143.34,143.29,1.2961453]
[1768490133124,6.66432864,143.33,143.29,1.2961453]
[1768490133327,6.66432864,143.33,143.27,8.27584809]
[1768490133526,6.66432864,143.3,143.24,1.2961453]
[1768490133835,29.76155751,143.34,143.26,1.2961453]
[1768490134033,29.76155751,143.34,143.27,1.2961453]
[1768490134202,6.66432864,143.31,143.24,1.2961453]
[1768490134405,0.14216157,143.32,143.24,1.2961453]
[1768490134613,6.66432864,143.29,143.24,1.2961453]
[1768490134808,6.66432864,143.28,143.22,18.68385709]
[1768490135105,6.66432864,143.27,143.22,31.40385709]
[1768490135301,6.66432864,143.26,143.22,17.38771179]
[1768490136229,0.14216157,143.3,143.22,1e-08]
[1768490136452,6.66432864,143.28,143.22,1.29614531]
[1768490136727,6.97982829,143.27,143.23,1.2961453]
[1768490137120,13.64415693,143.27,143.23,1.2961453]
[1768490137806,6.97946989,143.28,143.23,6.66432864]
[1768490138013,7.00963364,143.26,143.22,1e-08]
[1768490138222,6.66432864,143.25,143.22,1e-08]
[1768490138734,13.64561878,143.24,143.22,1e-08]
[1768490139033,6.98129014,143.24,143.22,1e-08]
[1768490139929,6.9808139,143.25,143.22,1e-08]
[1768490140312,6.9803584,143.26,143.22,1e-08]
[1768490140731,6.9803584,143.26,143.22,1.29614531]
[1768490141106,6.97976232,143.28,143.23,1.2961453]
[1768490141306,6.97836706,143.3,143.25,1.2961453]
[1768490141512,13.64172188,143.32,143.26,1.2961453]
[1768490141719,6.66432864,143.31,143.26,1.2961453]
[1768490142210,13.64172188,143.32,143.26,1.2961453]
[1768490142417,6.97739324,143.32,143.26,1.2961453]
[1768490142619,6.9764197,143.34,143.28,1.2961453]
[1768490142823,6.66432864,143.33,143.29,12.72]
[1768490143518,6.66432864,143.33,143.27,8.2758057]
[1768490143832,6.97739324,143.32,143.28,12.72]
[1768490144032,6.97739324,143.32,143.28,14.0161453]
[1768490144334,17.43907135,143.36,143.3,1.2961453]
[1768490144537,24.40741243,143.4,143.33,1.2961453]
[1768490144742,3.63828114,143.41,143.35,1.2961453]
[1768490145033,6.66432864,143.46,143.4,1.2961453]
[1768490145233,6.66432864,143.46,143.41,12.72]
[1768490145615,6.97033322,143.47,143.41,26.35702012]
[1768490145811,6.97033322,143.47,143.42,6.66432864]
[1768490146134,6.86432864,143.5,143.44,6.66432864]
[1768490146327,6.86432864,143.5,143.32,20.89]
[1768490146328,6.66432864,143.45,143.31,5.34408856]
[1768490146538,5.9565132,143.41,143.35,6.66432864]
[1768490146720,5.9565132,143.41,143.32,12.86216157]
[1768490146921,5.9565132,143.41,143.35,6.66432864]
[1768490147128,5.9565132,143.41,143.37,1.2961453]
[1768490147323,5.9565132,143.42,143.38,12.72]
[1768490147544,12.62084184,143.42,143.38,12.72]
[1768490147838,19.59364106,143.42,143.37,1.2961453]
[1768490148035,19.59364106,143.42,143.38,12.72]
[1768490148637,19.59364106,143.42,143.37,1.2961453]
[1768490148837,19.59364106,143.42,143.38,12.72]
[1768490149240,5.9565132,143.4,143.35,6.35379155]
[1768490149433,18.74787841,143.46,143.36,12.72]
[1768490149619,18.74787841,143.46,143.38,6.66432864]
[1768490149620,12.62084184,143.45,143.38,6.66432864]
[1768490149949,5.9565132,143.45,143.39,6.66432864]
[1768490150142,5.9565132,143.45,143.4,12.72]
[1768490150450,7.98568335,143.42,143.33,17.44201012]
[1768490150630,6.66432864,143.4,143.34,19.38432864]
[1768490150815,6.66432864,143.41,143.35,1.16545643]
[1768490151014,1.32135471,143.42,143.35,1.16545643]
[1768490151235,6.66432864,143.43,143.37,1.16545643]
[1768490151455,6.97252823,143.42,143.38,12.72]
[1768490151636,1.07356081,143.44,143.38,13.88545643]
[1768490151637,7.73788945,143.44,143.38,13.88545643]
[1768490151839,6.66432864,143.44,143.38,20.54978507]
[1768490152036,6.55981094,143.46,143.36,12.72]
[1768490152037,6.66432864,143.41,143.36,12.72]
[1768490152546,5.48625013,143.46,143.39,1.16545643]
[1768490152749,6.97058413,143.46,143.4,1.16545643]
[1768490152951,6.66432864,143.42,143.38,1.16545643]
[1768490153322,13.63734307,143.41,143.36,1.16545643]
[1768490153529,13.63734307,143.41,143.37,12.72]
[1768490153727,1.07356081,143.44,143.38,1.16545643]
[1768490154030,6.66432864,143.43,143.38,1.16545643]
[1768490154231,6.97204211,143.43,143.38,1.16545643]
[1768490154429,13.63637075,143.43,143.38,1.16545643]
[1768490154639,14.70955435,143.44,143.38,8.13992148]
[1768490154840,6.97112999,143.45,143.4,1.16545643]
[1768490155546,13.63496428,143.46,143.41,1.16545643]
[1768490155859,0.2,143.47,143.43,1.16545643]
[1768490156053,0.2,143.47,143.44,1.16545643]
[1768490156427,6.66432864,143.45,143.4,1.16545643]
[1768490156641,6.66432864,143.44,143.4,1.16545643]
[1768490156853,1.07356081,143.46,143.4,1.16545643]
[1768490157153,6.66432864,143.45,143.4,1.16545643]
[1768490157548,6.97128783,143.45,143.4,1.16545643]
[1768490158055,6.97128783,143.45,143.4,8.13888877]
[1768490159363,6.97128783,143.45,143.41,1.16545643]
[1768490159537,6.97128783,143.45,143.4,6.97343234]
[1768490159856,6.97128783,143.45,143.4,20.85885466]
[1768490160030,8.24401818,143.47,143.41,1.16545643]
[1768490160232,1.07356081,143.41,143.27,34.89887934]
[1768490160441,6.66432864,143.39,143.33,6.97679293]
[1768490160647,6.66432864,143.37,143.3,6.66432864]
[1768490160839,1.07356081,143.38,143.3,6.66432864]
[1768490161041,13.63969478,143.37,143.31,6.97778282]
[1768490161453,6.66432864,143.4,143.33,6.66432864]
[1768490161668,6.97365817,143.4,143.34,6.66432864]
[1768490161956,13.63752109,143.41,143.34,6.66432864]
[1768490162159,6.66432864,143.4,143.33,6.66432864]
[1768490162461,6.66432864,143.4,143.34,1.16545643]
[1768490162664,13.63752109,143.41,143.35,1.16545643]
[1768490162958,6.9726485,143.42,143.36,1.16545643]
[1768490163159,6.9726485,143.42,143.37,1.16545643]
[1768490164164,7.11371762,143.44,143.37,14.80440473]
[1768490164464,6.66432864,143.43,143.37,8.14007609]
[1768490165144,6.66432864,143.43,143.32,8.1424917]
[1768490165145,6.66432864,143.38,143.32,8.1424917]
[1768490165337,10.8424193,143.37,143.32,8.1424917]
[1768490165550,11.91598011,143.37,143.3,13.88545643]
[1768490165753,11.91598011,143.37,143.31,1.16545643]
[1768490165956,10.8424193,143.37,143.27,0.14216157]
[1768490166152,5.48625013,143.41,143.26,34.90154966]
[1768490166153,11.91598011,143.33,143.26,10.8424193]
[1768490166748,11.91598011,143.37,143.3,10.8424193]
[1768490166943,18.8911194,143.37,143.3,10.8424193]
[1768490167145,11.91598011,143.35,143.29,12.72]
[1768490167352,10.8424193,143.34,143.29,12.72]
[1768490167569,1.07356081,143.33,143.28,12.72]
[1768490168074,1.07356081,143.33,143.28,19.69897621]
[1768490168282,8.05059972,143.33,143.28,19.69897621]
[1768490168646,1.07356081,143.33,143.28,19.69897621]
[1768490169044,17.81897683,143.34,143.28,20.86443264]
[1768490169244,18.89253764,143.34,143.28,20.86443264]
[1768490169569,1.07356081,143.36,143.29,12.00787573]
[1768490169949,10.8424193,143.35,143.29,12.00787573]
[1768490170169,6.97512379,143.37,143.31,1.16545643]
[1768490170463,18.89045294,143.39,143.33,1.16545643]
[1768490170685,1.07356081,143.36,143.32,12.72]
[1768490170851,10.8424193,143.37,143.32,12.72]
[1768490171239,10.8424193,143.37,143.31,1.16545643]
[1768490171452,10.8424193,143.37,143.32,12.72]
[1768490171857,17.81744021,143.37,143.32,19.69718639]
[1768490172063,11.91598011,143.33,143.24,17.45245177]
[1768490172257,10.8424193,143.31,143.26,6.98031551]
[1768490172573,1.07356081,143.35,143.26,35.27352358]
[1768490172785,25.48598145,143.37,143.28,10.8424193]
[1768490172939,25.48598145,143.37,143.29,12.72]
[1768490172940,10.8424193,143.35,143.29,12.72]
[1768490173143,25.48598145,143.37,143.29,23.5624193]
[1768490173362,10.8424193,143.36,143.29,23.5624193]
[1768490173557,1.07356081,143.36,143.29,12.72]
[1768490173762,10.8424193,143.35,143.29,12.72]
[1768490173976,6.9764197,143.34,143.29,19.69874756]
[1768490174158,6.9764197,143.34,143.29,20.86420399]
[1768490174464,18.89239981,143.34,143.28,6.97924923]
[1768490174672,18.89239981,143.34,143.29,12.72]
[1768490175350,8.04998051,143.34,143.29,19.69867429]
[1768490175552,18.89170662,143.36,143.3,1.16545643]
[1768490175954,10.8424193,143.35,143.3,1.16545643]
[1768490176156,10.8424193,143.36,143.31,1.16545643]
[1768490176978,10.8424193,143.35,143.31,1.16545643]
[1768490177190,10.8424193,143.33,143.29,1.16545643]
[1768490177475,10.8424193,143.32,143.29,1.16545643]
[1768490178255,17.82029942,143.31,143.29,1.16545643]
[1768490178560,10.8424193,143.3,143.26,12.72]
[1768490179463,25.49614123,143.31,143.26,12.72]
[1768490179667,10.8424193,143.3,143.26,12.72]
[1768490179973,10.8424193,143.3,143.26,19.70030445]
[1768490180353,6.97744693,143.32,143.26,19.70030445]
[1768490180555,8.05061028,143.33,143.27,1.16545643]
[1768490180779,10.8424193,143.32,143.27,1.16545643]
[1768490181155,10.8424193,143.31,143.28,12.72]
[1768490181355,11.92406639,143.31,143.25,8.02715192]
[1768490181554,1.08164709,143.3,143.26,12.72]
[1768490181954,10.8424193,143.29,143.24,6.98116075]
[1768490182161,10.8424193,143.28,143.23,8.02799465]
[1768490182358,17.82224759,143.27,143.23,12.72]
[1768490182562,17.82224759,143.27,143.22,1e-08]
[1768490182757,10.8424193,143.27,143.23,12.72]
[1768490183056,10.8424193,143.33,143.27,1.04639384]
[1768490183257,10.8424193,143.33,143.28,12.72]
[1768490183457,8.05777916,143.35,143.28,13.76639384]
[1768490183658,1.08164709,143.37,143.3,11.88881314]
[1768490183971,10.8424193,143.39,143.33,1.04639384]
[1768490184167,10.8424193,143.39,143.34,12.72]
[1768490184366,17.81574384,143.41,143.35,6.97593303]
[1768490184573,11.89323682,143.42,143.35,35.2581849]
[1768490184760,1.05081752,143.42,143.36,10.8424193]
[1768490185073,11.89323682,143.42,143.36,10.8424193]
[1768490185247,18.86587761,143.42,143.36,10.8424193]
[1768490185452,10.8424193,143.4,143.35,6.97593303]
[1768490185763,8.02305339,143.43,143.36,23.5624193]
[1768490185961,10.8424193,143.43,143.37,10.8424193]
[1768490186158,1.05081752,143.46,143.4,1.01581027]
[1768490186373,18.01271774,143.47,143.41,31.55088255]
[1768490186557,11.0424193,143.47,143.41,31.55088255]
[1768490186758,11.0424193,143.47,143.41,20.70846325]
[1768490187076,18.01267946,143.47,143.41,20.70846325]
[1768490187279,0.2,143.47,143.42,1.01581027]
[1768490188056,0.2,143.47,143.42,11.85822957]
[1768490188469,0.2,143.47,143.43,6.97204211]
[1768490188653,11.89323682,143.46,143.43,12.66000008]
[1768490188852,11.89323682,143.46,143.43,12.63000009]
[1768490189272,11.89323682,143.46,143.42,12.72]
[1768490189456,0.2,143.47,143.42,20.70827393]
[1768490189659,0.2,143.47,143.42,31.55069323]
[1768490189961,0.2,143.47,143.42,18.83069323]
[1768490190165,0.2,143.47,143.43,12.72]
[1768490190654,7.17015164,143.47,143.43,12.72]
[1768490190880,18.01257094,143.47,143.43,12.72]
[1768490191181,7.17015164,143.47,143.43,12.72]
[1768490191979,11.89323682,143.46,143.43,12.72]
[1768490192181,18.01257094,143.47,143.43,12.72]
[1768490192684,0.2,143.47,143.43,12.72]
[1768490192993,0.2,143.47,143.43,30.53431567]
[1768490193285,0.2,143.47,143.43,20.70770664]
[1768490193466,0.2,143.5,143.45,11.85822957]
[1768490193671,0.2,143.5,143.46,12.72]
[1768490193868,0.2,143.5,143.46,12.69000001]
[1768490194064,11.89323682,143.49,143.43,10.8424193]
[1768490194268,11.89323682,143.48,143.45,12.72]
[1768490194682,18.86315745,143.48,143.42,17.81453664]
[1768490194881,18.86315745,143.48,143.43,12.72]
[1768490195059,8.02073815,143.48,143.43,12.72]
[1768490195262,1.05081752,143.46,143.4,10.8424193]
[1768490195464,0.2,143.5,143.45,10.8424193]
[1768490195670,0.2,143.5,143.43,12.72]
[1768490195671,7.16889361,143.5,143.44,7.98720985]
[1768490195871,10.8424193,143.48,143.45,12.72]
[1768490196072,10.8424193,143.48,143.4,1.01581027]
[1768490196073,1.05081752,143.48,143.4,1.01581027]
[1768490196383,11.89323682,143.48,143.42,10.8424193]
[1768490196568,24.59049639,143.5,143.4,6.97307205]
[1768490196569,1.05081752,143.46,143.4,6.97307205]
[1768490196768,6.97107005,143.45,143.41,12.72]
[1768490196971,11.89323682,143.43,143.37,1.01581027]
[1768490197173,11.89323682,143.43,143.37,7.99036557]
[1768490197472,11.89323682,143.43,143.38,19.6943557]
[1768490198099,10.8424193,143.44,143.39,6.97396598]
[1768490198390,11.89323682,143.44,143.39,6.97396598]
[1768490198686,11.89323682,143.45,143.39,10.8424193]
[1768490198994,11.89323682,143.43,143.38,6.97430354]
[1768490199174,11.89323682,143.42,143.39,12.72]
[1768490199369,1.05081752,143.45,143.39,1.01581027]
[1768490199574,1.05081752,143.45,143.39,20.70946301]
[1768490199773,10.8424193,143.44,143.39,20.70946301]
[1768490199975,1.05081752,143.45,143.4,6.97328018]
[1768490200201,6.97071724,143.46,143.4,7.98909045]
[1768490200411,0.2,143.5,143.46,1.01581027]
[1768490200613,0.2,143.5,143.47,12.72]
[1768490200906,0.2,143.5,143.46,11.85822957]
[1768490200907,0.2,143.5,143.45,6.97093371]
[1768490201083,0.2,143.5,143.44,7.98730576]
[1768490201084,11.0424193,143.5,143.44,7.98730576]
[1768490201279,18.01116533,143.5,143.45,12.72]
[1768490201501,12.09323682,143.5,143.45,12.72]
[1768490201707,1.25081752,143.5,143.45,12.72]
[1768490202004,1.05081752,143.49,143.45,12.72]
[1768490202204,11.89323682,143.47,143.45,12.72]
[1768490202504,10.8424193,143.49,143.45,12.72]
[1768490202686,0.2,143.5,143.46,6.97057637]
[1768490203202,11.0424193,143.5,143.45,20.70673054]
[1768490203903,11.89323682,143.49,143.46,12.72]
[1768490204079,1.05081752,143.48,143.43,17.81398712]
[1768490204278,1.05081752,143.48,143.39,35.01005296]